bitfinex/quotes_SOLUSD_20250710
["timestamp","ask_amount","ask_price","bid_price","bid_amount"]
[1752168589236,0.06,159.15,159.14,76.82306149]
[1752168589422,0.06,159.15,159.14,82.79874249]
[1752168589601,5.975681,159.2,159.15,16.78468397]
[1752168589922,5.975681,159.2,159.16,33.39]
[1752168590123,1.14650208,159.24,159.17,26.67]
[1752168590313,5.975681,159.2,159.18,32.72]
[1752168590513,5.975681,159.2,159.18,33.39]
[1752168590705,5.975681,159.19,159.18,33.39]
[1752168591404,2.10523688,159.24,159.18,32.72]
[1752168591726,5.975681,159.19,159.18,32.72]
[1752168593122,6.655681,159.19,159.18,32.72]
[1752168593331,6.655681,159.19,159.15,26.67]
[1752168593517,0.68,159.19,159.15,26.67]
[1752168593825,0.68,159.18,159.14,89.0]
[1752168594026,0.68,159.18,159.15,32.72]
[1752168594624,0.68,159.17,159.16,32.72]
[1752168594919,6.655681,159.17,159.13,26.67]
[1752168595126,0.68,159.17,159.14,32.72]
[1752168595500,5.975681,159.15,159.14,32.72]
[1752168596431,0.68,159.17,159.14,32.72]
[1752168596730,5.975681,159.15,159.14,32.72]
[1752168597107,5.975681,159.15,159.14,33.39]
[1752168597309,5.975681,159.15,159.14,0.67]
[1752168597624,5.975681,159.15,159.14,33.39]
[1752168597830,5.975681,159.15,159.14,32.72]
[1752168600538,5.975681,159.15,159.14,33.39]
[1752168602221,5.975681,159.15,159.14,32.72]
[1752168602416,5.975681,159.15,159.13,115.0]
[1752168602617,0.68,159.18,159.14,0.67]
[1752168602827,0.68,159.17,159.14,32.7]
[1752168603147,5.975681,159.15,159.14,32.7]
[1752168603435,5.975681,159.15,159.14,33.37]
[1752168603814,5.975681,159.15,159.14,0.67]
[1752168604128,5.975681,159.15,159.14,33.2]
[1752168604314,5.975681,159.15,159.14,32.7]
[1752168604521,6.655681,159.15,159.11,26.0]
[1752168604721,0.68,159.15,159.12,32.7]
[1752168604922,5.975681,159.13,159.12,32.7]
[1752168605521,5.975681,159.13,159.12,33.37]
[1752168606334,5.975681,159.13,159.12,59.37]
[1752168606637,5.975681,159.13,159.12,32.7]
[1752168608833,5.975681,159.13,159.08,115.0]
[1752168609034,5.975681,159.1,159.09,33.89]
[1752168609227,5.975681,159.1,159.09,1.19]
[1752168609435,5.975681,159.1,159.09,33.89]
[1752168610432,5.975681,159.1,159.09,33.37]
[1752168611718,5.975681,159.1,159.09,0.67]
[1752168611924,5.975681,159.1,159.08,115.0]
[1752168612132,5.975681,159.09,159.08,115.67]
[1752168612428,5.975681,159.09,159.08,27.19]
[1752168612630,5.975681,159.09,159.08,59.89]
[1752168612839,5.975681,159.09,159.08,27.19]
[1752168613025,5.975681,159.09,159.08,59.89]
[1752168613655,5.975681,159.09,159.08,27.19]
[1752168613843,5.975681,159.09,159.08,59.22]
[1752168614152,5.975681,159.09,159.08,59.89]
[1752168614349,5.975681,159.09,159.08,33.89]
[1752168614531,5.975681,159.09,159.08,27.19]
[1752168614852,5.975681,159.09,159.08,59.89]
[1752168615148,0.69,159.14,159.08,59.89]
[1752168615455,5.975681,159.09,159.08,59.22]
[1752168615637,0.69,159.14,159.08,59.22]
[1752168615840,5.975681,159.12,159.08,59.89]
[1752168616033,5.975681,159.09,159.08,59.22]
[1752168616643,5.975681,159.09,159.08,59.89]
[1752168618056,0.28432314,159.16,159.08,59.89]
[1752168618057,5.975681,159.1,159.08,59.89]
[1752168618248,0.69,159.14,159.09,0.67]
[1752168618580,0.81657323,159.17,159.1,32.68]
[1752168618581,5.975681,159.11,159.1,32.68]
[1752168618941,5.975681,159.11,159.1,33.35]
[1752168619155,0.81657323,159.17,159.1,33.35]
[1752168619332,5.975681,159.12,159.11,0.67]
[1752168622060,0.69,159.16,159.11,0.67]
[1752168622274,5.975681,159.13,159.12,32.68]
[1752168622570,5.975681,159.13,159.12,33.35]
[1752168622857,5.975681,159.13,159.12,32.68]
[1752168623068,6.665681,159.13,159.12,32.68]
[1752168623451,5.975681,159.13,159.12,32.68]
[1752168624765,0.69,159.16,159.12,33.35]
[1752168625065,5.975681,159.13,159.12,33.35]
[1752168625257,0.69,159.15,159.12,33.35]
[1752168625457,5.975681,159.13,159.12,33.35]
[1752168627885,5.975681,159.13,159.08,121.63784257]
[1752168627886,6.665681,159.13,159.1,0.67]
[1752168628183,5.975681,159.11,159.1,0.67]
[1752168628340,5.975681,159.11,159.1,33.35]
[1752168628771,0.69,159.14,159.12,0.5]
[1752168628941,0.69,159.14,159.13,32.68]
[1752168629148,6.665681,159.14,159.13,32.68]
[1752168630056,6.665681,159.14,159.1,0.67]
[1752168630388,0.69,159.14,159.11,32.66]
[1752168631442,5.975681,159.12,159.11,32.66]
[1752168631647,5.975681,159.12,159.11,33.33]
[1752168633057,1.528,159.18,159.11,33.33]
[1752168633353,5.975681,159.13,159.12,0.67]
[1752168635075,0.69,159.15,159.11,32.66]
[1752168635277,5.975681,159.12,159.11,32.66]
[1752168636072,5.975681,159.12,159.11,33.33]
[1752168636375,5.975681,159.13,159.11,33.33]
[1752168636548,5.975681,159.13,159.12,0.67]
[1752168637062,0.69,159.16,159.12,0.67]
[1752168637274,5.975681,159.13,159.12,0.67]
[1752168638051,5.975681,159.13,159.11,33.33]
[1752168638259,5.975681,159.12,159.11,32.66]
[1752168638973,12.641362,159.12,159.11,32.66]
[1752168639170,12.641362,159.12,159.08,115.97]
[1752168639484,0.69,159.14,159.09,34.36]
[1752168639684,0.69,159.14,159.1,0.67]
[1752168639869,0.69,159.13,159.09,34.36]
[1752168640069,0.69,159.13,159.1,32.66]
[1752168640780,5.975681,159.11,159.1,32.66]
[1752168640983,5.975681,159.11,159.1,33.33]
[1752168641462,5.975681,159.11,159.1,32.66]
[1752168642084,5.975681,159.11,159.09,0.67]
[1752168642277,5.975681,159.11,159.1,32.64]
[1752168642781,0.69,159.14,159.1,33.31]
[1752168642976,5.975681,159.11,159.1,32.64]
[1752168643554,5.975681,159.11,159.1,33.31]
[1752168643786,5.975681,159.12,159.1,33.31]
[1752168643957,5.975681,159.12,159.1,32.64]
[1752168644160,5.975681,159.12,159.11,0.67]
[1752168645467,5.975681,159.12,159.1,32.64]
[1752168645663,5.975681,159.11,159.1,33.35]
[1752168646080,5.975681,159.11,159.1,32.64]
[1752168646288,5.975681,159.11,159.1,33.35]
[1752168647079,5.975681,159.11,159.1,32.64]
[1752168647684,5.975681,159.11,159.1,33.35]
[1752168649195,0.69,159.14,159.1,33.35]
[1752168649390,5.975681,159.11,159.1,32.64]
[1752168650098,5.975681,159.11,159.1,33.35]
[1752168650303,5.975681,159.12,159.1,33.35]
[1752168650590,5.975681,159.12,159.11,0.71]
[1752168653092,0.69,159.16,159.11,0.71]
[1752168653604,5.975681,159.13,159.12,0.71]
[1752168653796,6.514,159.19,159.12,0.71]
[1752168654097,2.23781166,159.22,159.13,32.64]
[1752168654404,5.975681,159.14,159.13,32.64]
[1752168654573,5.975681,159.14,159.09,0.28432314]
[1752168654574,32.665681,159.14,159.08,2.6089]
[1752168654779,5.975681,159.09,159.08,0.3]
[1752168654985,5.975681,159.09,159.08,32.92]
[1752168655177,6.665681,159.12,159.08,33.63]
[1752168655386,5.975681,159.09,159.08,32.92]
[1752168655703,5.975681,159.09,159.08,0.3]
[1752168655903,6.665681,159.09,159.08,0.3]
[1752168656087,6.95000414,159.09,159.08,0.3]
[1752168656284,6.665681,159.09,159.04,27.12]
[1752168656494,11.951362,159.05,159.04,27.12]
[1752168656797,12.641362,159.05,159.04,27.12]
[1752168657708,12.641362,159.05,158.99,0.71]
[1752168657868,5.975681,159.0,158.99,0.71]
[1752168658781,26.67441166,159.08,158.99,0.71]
[1752168658782,0.69,159.06,158.99,33.33]
[1752168658977,5.975681,159.02,159.0,0.71]
[1752168659873,26.69,159.07,159.0,0.71]
[1752168660189,5.975681,159.02,159.0,0.71]
[1752168660498,5.975681,159.04,159.01,0.14216157]
[1752168660698,5.975681,159.04,159.02,0.71]
[1752168660999,0.69,159.07,159.03,32.62]
[1752168661200,0.69,159.07,159.03,33.33]
[1752168661404,26.0,159.08,159.04,0.71]
[1752168661586,26.0,159.08,159.05,0.71]
[1752168661896,32.3395,159.11,159.05,0.71]
[1752168662098,26.69,159.11,159.06,0.71]
[1752168662285,26.69,159.11,159.07,32.62]
[1752168662474,5.975681,159.08,159.07,32.62]
[1752168662680,6.665681,159.08,159.0,6.4968]
[1752168662899,0.69,159.08,159.02,0.71]
[1752168663274,0.69,159.1,159.02,0.71]
[1752168663673,18.43341877,159.1,159.02,0.71]
[1752168663874,5.97071446,159.04,159.02,0.71]
[1752168664299,5.97071446,159.04,159.03,0.71]
[1752168664678,5.97071446,159.05,159.03,33.33]
[1752168664998,5.97071446,159.05,159.04,0.71]
[1752168665698,5.97071446,159.05,159.03,32.62]
[1752168665895,5.97071446,159.04,159.03,33.33]
[1752168667701,5.97071446,159.04,159.03,32.62]
[1752168667892,12.63142892,159.04,158.97,23.25648397]
[1752168668098,5.97071446,159.0,158.99,0.71]
[1752168668393,5.97071446,159.01,158.99,0.71]
[1752168668988,5.97071446,159.02,159.0,32.62]
[1752168669306,0.69,159.06,159.01,0.71]
[1752168669472,5.97071446,159.02,159.01,0.71]
[1752168669897,5.97071446,159.02,159.01,33.33]
[1752168672202,5.97071446,159.03,159.01,33.33]
[1752168672399,5.97071446,159.03,159.02,0.71]
[1752168672779,5.97071446,159.04,159.02,0.71]
[1752168672980,5.97071446,159.06,159.02,0.71]
[1752168673185,26.69,159.09,159.02,0.71]
[1752168673596,5.97071446,159.06,159.02,0.71]
[1752168674483,5.97071446,159.05,159.02,0.71]
[1752168674910,5.97071446,159.06,159.02,0.71]
[1752168675090,0.69,159.09,159.02,0.71]
[1752168675595,5.97071446,159.06,159.02,0.71]
[1752168675793,5.97071446,159.05,159.02,0.71]
[1752168676208,5.97071446,159.04,159.02,0.69]
[1752168676411,5.97071446,159.03,159.01,26.0]
[1752168676598,0.67,159.06,159.03,32.62]
[1752168676790,5.97071446,159.04,159.03,32.62]
[1752168676988,5.97071446,159.04,159.03,33.31]
[1752168677497,5.97071446,159.04,159.03,32.62]
[1752168678511,6.64071446,159.04,159.03,32.62]
[1752168678682,5.97071446,159.04,159.03,32.62]
[1752168681821,5.97071446,159.04,158.98,26.0]
[1752168682122,5.97071446,159.04,159.0,0.06]
[1752168682123,5.97071446,159.01,159.0,0.06]
[1752168682417,5.97071446,159.01,159.0,26.06]
[1752168682797,5.97071446,159.01,159.0,58.66]
[1752168683115,5.97071446,159.01,159.0,0.06]
[1752168683320,6.64071446,159.01,159.0,32.66]
[1752168683493,5.97071446,159.01,159.0,32.66]
[1752168683894,5.97071446,159.01,159.0,0.06]
[1752168684517,5.97071446,159.01,159.0,32.66]
[1752168685717,0.67,159.05,159.0,33.35]
[1752168686022,5.97071446,159.02,159.01,0.69]
[1752168686531,5.97071446,159.02,159.0,32.66]
[1752168686833,5.97071446,159.01,159.0,33.35]
[1752168687332,0.03,159.07,159.0,33.35]
[1752168687333,0.7,159.07,159.0,33.35]
[1752168687544,0.7,159.07,159.01,0.69]
[1752168687824,5.97071446,159.04,159.01,0.69]
[1752168688516,5.97071446,159.05,159.01,0.69]
[1752168688698,0.03,159.07,159.03,26.0]
[1752168688899,0.03,159.07,159.04,59.29]
[1752168689129,6.00071446,159.07,159.04,59.29]
[1752168689419,5.97071446,159.06,159.05,0.69]
[1752168690117,5.97071446,159.06,159.05,32.6]
[1752168690318,0.7,159.07,159.05,32.6]
[1752168690319,0.03,159.07,159.05,32.6]
[1752168690528,5.97071446,159.06,159.05,32.6]
[1752168691024,5.97071446,159.06,159.05,33.29]
[1752168691195,0.03,159.07,159.05,33.29]
[1752168691400,0.03,159.07,159.06,0.69]
[1752168691619,6.00071446,159.07,159.06,0.69]
[1752168691825,0.03,159.07,159.06,17.61684554]
[1752168692129,0.03,159.07,159.06,132.90116868]
[1752168693223,0.03,159.07,159.06,132.61684554]
[1752168693395,0.03,159.07,159.06,106.61684554]
[1752168693600,0.03,159.07,159.06,107.52986225]
[1752168694324,31.02488436,159.18,159.07,17.21116868]
[1752168694325,26.0,159.15,159.07,17.21116868]
[1752168694513,5.97071446,159.11,159.08,33.29]
[1752168694711,5.97071446,159.11,159.09,0.69]
[1752168694899,5.97071446,159.11,159.08,121.6]
[1752168694900,5.97071446,159.1,159.08,121.6]
[1752168695108,5.97071446,159.11,159.09,0.69]
[1752168695308,26.0,159.14,159.1,0.69]
[1752168695509,26.0,159.14,159.08,32.6]
[1752168695510,5.97071446,159.11,159.08,0.69]
[1752168695705,5.97071446,159.12,159.09,32.6]
[1752168696009,6.64071446,159.12,159.09,32.6]
[1752168696203,26.0,159.13,159.09,33.29]
[1752168696421,26.67,159.13,159.09,33.29]
[1752168696621,35.16073431,159.16,159.09,33.29]
[1752168696803,0.67,159.15,159.1,0.69]
[1752168696999,0.67,159.15,159.09,32.6]
[1752168697217,0.67,159.15,159.11,0.69]
[1752168697418,0.67,159.14,159.12,32.6]
[1752168697619,26.67,159.16,159.13,32.6]
[1752168697806,0.67,159.15,159.13,32.6]
[1752168698430,5.97071446,159.14,159.13,32.6]
[1752168698620,0.67,159.17,159.13,32.6]
[1752168698821,5.97071446,159.14,159.13,33.29]
[1752168699014,5.97071446,159.15,159.13,32.6]
[1752168699221,0.67,159.21,159.13,34.1805]
[1752168699420,5.97071446,159.17,159.14,0.69]
[1752168699725,5.97071446,159.18,159.14,0.69]
[1752168699930,5.97071446,159.17,159.15,0.69]
[1752168700230,5.97071446,159.2,159.16,32.58]
[1752168700425,31.99811952,159.22,159.17,0.69]
[1752168700735,31.99811952,159.22,159.18,0.14216157]
[1752168700919,0.1,159.23,159.19,33.89818016]
[1752168701238,0.77,159.23,159.14,4.53026487]
[1752168701429,0.67,159.22,159.14,4.53026487]
[1752168701643,0.1,159.23,159.14,4.53026487]
[1752168701932,0.1,159.23,159.15,0.26805826]
[1752168702103,0.1,159.23,159.15,17.05274223]
[1752168702308,6.07071446,159.23,159.16,32.8]
[1752168702538,5.97071446,159.22,159.17,0.26785131]
[1752168703040,0.1,159.23,159.17,0.26785131]
[1752168703340,0.1,159.23,159.18,0.07]
[1752168703541,0.1,159.23,159.19,0.26773584]
[1752168703751,0.03,159.22,159.21,1.73286157]
[1752168703948,0.03,159.22,159.21,2.69048196]
[1752168704542,0.03,159.22,159.21,2.54832039]
[1752168705518,6.00071446,159.22,159.2,32.82]
[1752168705722,5.97071446,159.21,159.2,32.82]
[1752168705922,5.97071446,159.21,159.19,0.68]
[1752168706109,5.97071446,159.2,159.17,2.3056]
[1752168706305,26.0,159.21,159.18,33.47]
[1752168706509,26.0,159.21,159.19,0.66]
[1752168706709,5.97071446,159.2,159.19,0.66]
[1752168706933,5.97071446,159.2,159.18,32.8]
[1752168707116,6.00071446,159.22,159.18,32.8]
[1752168707319,6.00071446,159.22,159.19,0.26777675]
[1752168707516,5.97071446,159.21,159.2,32.8]
[1752168708052,0.03,159.22,159.2,32.8]
[1752168708254,5.97071446,159.21,159.2,32.8]
[1752168708839,5.97071446,159.21,159.2,32.78]
[1752168710006,31.97071446,159.21,159.2,32.82]
[1752168710734,6.69071446,159.21,159.2,32.82]
[1752168711234,0.03,159.22,159.2,32.8]
[1752168711531,0.03,159.22,159.21,0.26766129]
[1752168711737,0.03,159.22,159.21,0.37766129]
[1752168711937,0.03,159.22,159.21,0.26766129]
[1752168712232,0.03,159.22,159.21,0.89766129]
[1752168712639,0.03,159.22,159.21,90.03982286]
[1752168712837,0.03,159.22,159.21,89.89766129]
[1752168713024,0.03,159.22,159.21,90.03982286]
[1752168713753,0.72,159.3,159.21,90.03982286]
[1752168713754,5.97071446,159.28,159.22,0.14216157]
[1752168713917,5.97071446,159.28,159.23,33.06730045]
[1752168714242,0.72,159.32,159.25,0.14216157]
[1752168714424,5.97071446,159.3,159.26,33.42]
[1752168714628,0.72,159.33,159.26,33.42]
[1752168714629,0.72,159.33,159.27,0.96702149]
[1752168714823,46.47610501,159.35,159.28,2.3632]
[1752168715129,40.30449748,159.35,159.29,33.48]
[1752168715321,8.20199951,159.35,159.3,0.7]
[1752168715639,9.91661182,159.32,159.31,0.7]
[1752168715823,9.91661182,159.32,159.31,32.78]
[1752168716231,0.72,159.35,159.31,32.78]
[1752168716546,9.91661182,159.32,159.31,32.78]
[1752168716720,35.91661182,159.32,159.31,32.78]
[1752168718337,9.91661182,159.32,159.31,32.74]
[1752168718935,10.63661182,159.32,159.31,34.51]
[1752168719456,36.63661182,159.32,159.31,34.51]
[1752168719626,53.42129579,159.32,159.31,0.8089]
[1752168720243,36.63661182,159.32,159.31,0.8089]
[1752168720757,36.63661182,159.32,159.31,33.5489]
[1752168721053,36.63661182,159.32,159.31,32.74]
[1752168721441,9.91661182,159.32,159.31,32.74]
[1752168721757,10.63661182,159.32,159.31,32.74]
[1752168721931,9.91661182,159.32,159.31,32.74]
[1752168722732,10.63661182,159.32,159.31,32.74]
[1752168723055,9.91661182,159.32,159.31,32.74]
[1752168723927,9.91661182,159.32,159.31,33.44]
[1752168724128,9.91661182,159.32,159.31,32.74]
[1752168724359,37.61318877,159.34,159.31,32.74]
[1752168725033,9.91661182,159.32,159.31,32.74]
[1752168725434,0.06,159.32,159.31,32.74]
[1752168725750,9.97661182,159.32,159.31,32.74]
[1752168725951,0.06,159.32,159.31,35.19566157]
[1752168726148,9.91661182,159.35,159.34,26.0]
[1752168726347,9.91661182,159.35,159.34,59.36]
[1752168728351,6.17160753,159.38,159.34,59.36]
[1752168728541,6.17160753,159.38,159.35,0.7]
[1752168728863,9.91661182,159.36,159.35,0.7]
[1752168729050,9.91661182,159.36,159.34,32.92617581]
[1752168729368,9.91661182,159.36,159.34,33.61617581]
[1752168729859,6.17160753,159.38,159.35,0.69]
[1752168730052,6.17160753,159.38,159.36,0.7]
[1752168730274,6.17160753,159.38,159.37,32.62]
[1752168730566,9.91661182,159.38,159.37,33.32]
[1752168730746,9.91661182,159.38,159.37,32.62]
[1752168731057,10.63661182,159.38,159.37,32.62]
[1752168731448,10.63661182,159.4,159.37,32.62]
[1752168731646,9.91661182,159.38,159.32,87.92037758]
[1752168731858,0.72,159.39,159.32,87.92037758]
[1752168731859,9.91661182,159.35,159.32,87.92037758]
[1752168732271,6.17160753,159.39,159.31,27.6135]
[1752168732434,9.91661182,159.37,159.32,0.14216157]
[1752168732836,9.91661182,159.37,159.33,32.62]
[1752168733060,9.91661182,159.36,159.33,32.62]
[1752168733239,6.17160753,159.39,159.34,0.14216157]
[1752168733441,6.17160753,159.39,159.33,32.62]
[1752168733442,9.91661182,159.38,159.33,32.62]
[1752168733759,26.0,159.38,159.33,32.62]
[1752168734150,26.0,159.38,159.34,0.28432314]
[1752168734367,9.91661182,159.39,159.34,0.42648471]
[1752168735176,26.0,159.41,159.34,0.42648471]
[1752168735341,35.91661182,159.41,159.34,0.42648471]
[1752168735540,26.0,159.37,159.34,0.42648471]
[1752168736142,26.0,159.4,159.34,0.42648471]
[1752168736656,26.0,159.38,159.34,0.42648471]
[1752168736958,6.17160753,159.43,159.36,0.42648471]
[1752168737164,5.94210087,159.45,159.4,0.14216157]
[1752168737338,16.78468397,159.48,159.41,32.76]
[1752168737538,5.94210087,159.45,159.41,32.76]
[1752168737758,26.0,159.4,159.39,1.6368]
[1752168737934,5.94210087,159.42,159.39,34.5368]
[1752168738140,5.94210087,159.41,159.39,36.2168]
[1752168738359,5.94210087,159.4,159.39,34.58]
[1752168738761,26.0,159.42,159.39,1.68]
[1752168738972,8.89199951,159.41,159.4,32.94]
[1752168739179,14.83410038,159.41,159.4,34.62]
[1752168739666,37.77326799,159.41,159.4,1.68]
[1752168739966,37.77326799,159.41,159.4,34.64]
[1752168740541,38.1997527,159.41,159.4,34.64]
[1752168740754,26.0,159.34,159.31,7.9949]
[1752168740954,9.9155945,159.33,159.31,7.9949]
[1752168741153,35.9155945,159.34,159.31,7.9949]
[1752168741358,9.9155945,159.33,159.31,7.9949]
[1752168741552,26.0,159.34,159.31,7.9949]
[1752168741750,26.0,159.34,159.32,0.14216157]
[1752168741955,26.0,159.34,159.33,32.94]
[1752168742167,26.0,159.37,159.33,32.94]
[1752168742370,9.9155945,159.35,159.33,32.94]
[1752168742561,9.9155945,159.34,159.33,32.94]
[1752168743546,9.9155945,159.34,159.27,12.74442493]
[1752168743747,26.0,159.3,159.27,7.8356]
[1752168743947,26.0,159.3,159.28,32.94]
[1752168743948,9.9155945,159.3,159.28,32.94]
[1752168744165,26.0,159.35,159.28,32.94]
[1752168744368,6.15448364,159.36,159.28,32.94]
[1752168744669,6.15448364,159.36,159.29,0.42648471]
[1752168745244,9.9155945,159.33,159.29,0.42648471]
[1752168745444,9.9155945,159.37,159.29,17.21116868]
[1752168745851,9.9155945,159.36,159.29,17.21116868]
[1752168746058,8.20199951,159.39,159.29,17.21116868]
[1752168746443,9.9155945,159.35,159.29,17.21116868]
[1752168746849,26.0,159.36,159.33,0.03]
[1752168747047,35.9155945,159.36,159.34,32.94]
[1752168747558,9.9155945,159.35,159.34,32.94]
[1752168747782,9.9155945,159.35,159.33,0.03]
[1752168747952,9.9155945,159.34,159.33,0.03]
[1752168748276,35.9155945,159.34,159.33,0.03]
[1752168748452,35.9155945,159.34,159.33,32.95]
[1752168748774,10.6055945,159.34,159.33,0.03]
[1752168748959,10.6055945,159.34,159.33,32.95]
[1752168750069,10.6055945,159.34,159.33,0.03]
[1752168750274,10.6055945,159.34,159.33,32.93]
[1752168750450,10.6055945,159.34,159.33,0.03]
[1752168750646,10.6055945,159.34,159.33,32.93]
[1752168750968,10.6055945,159.34,159.33,0.03]
[1752168751153,16.78468397,159.35,159.33,32.93]
[1752168751347,9.9155945,159.34,159.33,32.93]
[1752168752361,24.98668348,159.39,159.33,33.0]
[1752168752678,9.9155945,159.36,159.34,0.13]
[1752168752869,26.0,159.38,159.34,0.13]
[1752168753059,9.9155945,159.41,159.35,1.7385]
[1752168753380,0.06,159.43,159.36,0.20216157]
[1752168753724,26.0,159.39,159.37,0.13]
[1752168753851,26.0,159.39,159.38,32.88]
[1752168754060,26.0,159.39,159.38,33.01]
[1752168754655,9.9155945,159.41,159.38,33.01]
[1752168754869,9.9155945,159.4,159.38,33.01]
[1752168755070,0.06,159.43,159.39,0.13]
[1752168755273,0.06,159.43,159.39,0.27216157]
[1752168755460,0.06,159.43,159.4,0.06]
[1752168756997,0.06,159.43,159.41,0.42648471]
[1752168757186,0.06,159.43,159.42,33.17216157]
[1752168757771,0.06,159.43,159.42,33.03]
[1752168757970,8.9755945,159.45,159.42,33.03]
[1752168758174,26.69,159.48,159.43,0.19]
[1752168758489,9.9155945,159.45,159.43,0.19]
[1752168758874,26.0,159.46,159.44,32.88]
[1752168759171,9.9155945,159.45,159.44,32.88]
[1752168760472,9.9155945,159.45,159.41,0.19]
[1752168760677,9.9155945,159.42,159.38,27.06]
[1752168760878,9.9155945,159.39,159.38,27.06]
[1752168761081,17.47468397,159.44,159.38,59.92]
[1752168761375,9.9155945,159.39,159.38,59.92]
[1752168763287,9.9155945,159.39,159.38,59.9]
[1752168763697,10.6055945,159.39,159.38,27.06]
[1752168764076,10.6055945,159.39,159.38,59.9]
[1752168764482,9.9155945,159.39,159.38,59.9]
[1752168764997,9.9155945,159.39,159.38,60.61]
[1752168765510,34.86199951,159.45,159.38,61.11]
[1752168765673,9.9155945,159.4,159.38,149.03037758]
[1752168765879,9.9155945,159.4,159.38,148.32037758]
[1752168766082,9.9155945,159.4,159.39,0.71]
[1752168766300,8.20199951,159.45,159.39,0.71]
[1752168766783,9.9155945,159.4,159.38,59.9]
[1752168766985,9.9155945,159.39,159.38,59.9]
[1752168767187,0.66,159.43,159.38,60.24]
[1752168767582,9.9155945,159.39,159.38,59.9]
[1752168767781,0.66,159.42,159.38,59.9]
[1752168767980,9.9155945,159.39,159.38,59.9]
[1752168768896,9.9755945,159.39,159.38,59.9]
[1752168770007,0.06,159.39,159.38,59.9]
[1752168770207,9.9755945,159.39,159.38,59.9]
[1752168770404,9.9755945,159.39,159.38,27.06]
[1752168770606,10.6355945,159.39,159.38,59.88]
[1752168770981,9.9755945,159.39,159.38,59.88]
[1752168771697,10.6355945,159.39,159.38,59.88]
[1752168771879,10.6355945,159.39,159.38,27.06]
[1752168772080,10.6355945,159.39,159.38,59.86]
[1752168772814,9.9755945,159.39,159.38,59.86]
[1752168773487,10.6355945,159.39,159.38,59.86]
[1752168773889,10.6355945,159.39,159.38,59.84]
[1752168774405,0.06,159.39,159.38,59.84]
[1752168774582,9.9755945,159.39,159.38,59.84]
[1752168776292,10.6355945,159.39,159.38,59.84]
[1752168776806,9.9755945,159.39,159.38,59.84]
[1752168777296,9.9755945,159.39,159.38,32.78]
[1752168778414,9.9755945,159.39,159.38,32.74]
[1752168778624,10.6355945,159.39,159.38,32.74]
[1752168779811,9.9755945,159.39,159.38,32.74]
[1752168780305,9.9755945,159.39,159.33,26.09]
[1752168780306,27.42027847,159.39,159.33,26.09]
[1752168780487,17.50468397,159.39,159.34,32.72]
[1752168780688,9.9155945,159.35,159.34,32.85]
[1752168780890,10.5755945,159.35,159.33,0.03]
[1752168781206,0.28432314,159.31,159.18,96.8135]
[1752168781413,9.9155945,159.21,159.19,33.49]
[1752168781712,9.9155945,159.21,159.18,7.8135]
[1752168781713,9.9155945,159.22,159.2,59.49]
[1752168781888,9.9155945,159.22,159.2,32.78]